{"text_format":"1","workbook":"xlsx","n_sheets":7,"sheets":["Notes","Calculator","RRUs","Power Plant","Resistance Table","Material List","Adapter Layout"],"not_rendered":{"charts":0,"images":60,"macros":1,"external_links":0,"defined_names":1,"comments":0,"pivot_tables":0},"unopened":[],"bounds":{"document_bytes":16777216,"sheet_cells":100000,"rows_first":2000,"rows_last":500,"rows_between":2000,"halvings":0,"cell_chars":16384,"cell_head_chars":4096},"cells_cut":0,"cells_raw":0,"read":"whole","date_system":"1900"}

{"sheet":"Notes","index":0,"n_rows":28,"n_cols":22,"rows_kept":28,"cut":false,"hidden":false,"merged":[[9,0,9,19],[10,0,10,20],[23,0,23,20],[24,0,24,20],[11,0,11,21],[22,0,22,20],[13,0,13,19],[14,0,14,19],[15,0,15,19],[16,0,16,19],[17,0,17,21],[19,0,19,20],[20,0,20,20],[21,0,21,20]]}
[]
[]
[]
["USE THIS CALCULATOR TO DETERMINE IF THE POWER EXTEND CONVERTER IS REQUIRED TO POWER REMOTE RADIO UNITS"]
["THE QUANTITY AND LAYOUT OF THE CONVERTERS WILL BE PROVIDED BASED ON MINIMAL CRITERIA"]
[null,"TRUNK AND JUMPER CABLE SIZE AND LENGTH"]
[null,"QUANTITY OF RRU TRUNK FEEDS"]
[null,"RADIO MODEL/TYPE or RRU PEAK DC INPUT POWER"]
[null,null,null,null,null,null,null,null,null,null,null,null,null,null,null,null,null,null,null,null,null,1]
["Select the power system model into which the Power Extend Converter(s) will be installed. Converter layout may be different for different power system models due to thermal conditions."]
["          Note: The NetSure 502, 582136800 Power Plant will only accept converters in the bottom row of a two row distribution cabinet or in a single row distribution cabinet."]
["Select the number of different radio types."]
["Select Metric if length of cable in meters versus feet is desired."]
["Select \"Stacked\" or \"Unstacked\". Stacked refers to applications in which the converters are installed with other converters installed in the row directly below them, increasing the local ambient."]
["Enter the Trunk Cable Length (the one-way length of the cable from the power source to the junction of the Jumper Cable on the tower), in feet or meters and select the Trunk wire gauge."]
["Enter the Jumper Cable Length (the one-way length of the cable from the junction at the Trunk Cable to the RRU), in feet or meters and select the Jumper wire gauge."]
["          Note: The Cable Loop Lengths in the table are calculated by doubling the total of trunk cable length and the jumper cable length."]
["Enter the Total Quantity of RRU Trunk Feeds, which is the total quantity of trunk cables feeding RRUs of the selected type. For dual band radios this may be one or two per RRU."]
["Select the Radio Type. Select from the drop down list or, if not in the list, select \"other\" and enter the peak power level on the next line."]
["RRU Trunk Feed Peak DC Input Power is the maximum rated DC input power of the RRU per trunk feed. This is auto-populated if a particular radio is selected."]
["RRU Trunk Feed Busy Hour Input Power is the average DC input power of the RRU per trunk feed at busy hour traffic. This is fixed at 65% of the peak power."]
["Enter the Minimum Source Voltage, which is the minimum power system bus voltage (such as end of battery discharge voltage). This is defaulted to 42.0VDC."]
["Converter Output Voltage = the output voltage of the Power Extend Converter. This is fixed at 58.0VDC"]
["Enter the Minimum RRU Operating Voltage (VDC), which is the voltage at the RRU at which the RRU will operate within specification. This is defaulted to 40.0VDC"]
["Peak Power Rating of Power Extend Converter is the maximum peak output power rating of the converter. This is fixed at 1000 watts."]
["A Material List and an Adapter Layout are developed based on the input to the Multi-Radio Calculator tab only."]
[]
["Rev 09"]

{"sheet":"Calculator","index":1,"n_rows":81,"n_cols":83,"rows_kept":81,"cut":false,"hidden":false,"merged":[[20,58,20,59],[20,60,20,61],[29,2,29,4],[29,5,29,10],[39,2,39,4],[39,5,39,10],[49,2,49,4],[49,5,49,10],[59,2,59,4],[59,5,59,10],[35,0,35,9],[38,0,38,9],[53,5,53,7],[53,8,53,10],[45,0,45,9],[47,0,47,9],[43,5,43,7],[43,8,43,10],[53,0,53,4],[23,40,29,40],[23,41,29,41],[23,43,23,47],[23,50,23,57],[23,58,23,59],[13,21,19,21],[14,0,14,9],[21,14,21,41],[13,16,19,16],[3,63,3,70],[4,63,4,70],[5,63,5,70],[6,63,6,70],[13,63,13,70],[14,63,14,70],[15,63,15,70],[16,63,16,70],[11,14,11,41],[10,50,10,57],[3,50,3,57],[4,50,4,57],[5,50,5,57],[6,50,6,57],[7,50,7,57],[8,50,8,57],[9,50,9,57],[13,22,19,22],[13,23,19,23],[20,50,20,57],[15,0,15,9],[16,0,16,9],[17,0,17,9],[13,13,19,13],[13,14,19,14],[13,15,19,15],[18,0,18,9],[9,5,9,10],[9,2,9,4],[19,5,19,10],[19,2,19,4],[13,12,19,12],[2,0,2,3],[2,4,2,9],[12,0,12,3],[12,4,12,9],[20,0,20,9],[20,12,20,13],[10,14,10,41],[20,14,20,41],[4,0,4,9],[5,0,5,9],[6,0,6,9],[7,0,7,9],[8,0,8,9],[13,24,19,24],[13,25,19,25],[13,26,19,26],[13,27,19,27],[13,28,19,28],[13,29,19,29],[13,30,19,30],[13,31,19,31],[13,32,19,32],[13,33,19,33],[13,34,19,34],[13,39,19,39],[10,0,10,9],[3,82,4,82],[5,82,6,82],[7,82,8,82],[9,82,10,82],[13,0,13,4],[13,5,13,7],[13,8,13,10],[19,50,19,57],[19,58,19,59],[19,60,19,61],[16,71,16,72],[17,50,17,57],[17,58,17,59],[17,60,17,61],[13,17,19,17],[13,18,19,18],[13,19,19,19],[13,20,19,20],[10,12,10,13],[6,60,6,61],[4,58,4,59],[4,60,4,61],[3,76,4,81],[5,76,6,81],[7,76,8,81],[9,76,10,81],[10,60,10,61],[7,60,7,61],[7,58,7,59],[8,58,8,59],[8,60,8,61],[9,58,9,59],[9,60,9,61],[5,60,5,61],[6,58,6,59],[3,58,3,59],[10,58,10,59],[5,58,5,59],[3,60,3,61],[0,15,0,26],[0,28,0,38],[3,18,9,18],[3,19,9,19],[2,33,2,41],[3,20,9,20],[3,21,9,21],[3,22,9,22],[3,23,9,23],[3,24,9,24],[3,25,9,25],[3,32,9,32],[3,33,9,33],[3,34,9,34],[3,35,9,35],[3,36,9,36],[3,37,9,37],[3,38,9,38],[3,39,9,39],[3,40,9,40],[3,41,9,41],[1,27,1,32],[1,35,1,38],[0,58,1,59],[0,60,1,61],[13,73,13,74],[16,58,16,59],[13,41,19,41],[15,58,15,59],[15,60,15,61],[14,58,14,59],[14,60,14,61],[14,71,14,72],[15,50,15,57],[15,71,15,72],[16,50,16,57],[0,73,1,74],[4,73,4,74],[5,71,5,72],[5,73,5,74],[6,71,6,72],[6,73,6,74],[3,71,3,72],[3,73,3,74],[4,71,4,72],[0,71,1,72],[16,60,16,61],[13,76,14,81],[13,82,14,82],[14,50,14,57],[0,0,0,10],[3,12,9,12],[3,13,9,13],[3,14,9,14],[3,15,9,15],[3,16,9,16],[3,17,9,17],[3,30,9,30],[3,31,9,31],[3,26,9,26],[3,27,9,27],[3,28,9,28],[3,29,9,29],[1,12,1,21],[1,22,1,24],[1,0,1,3],[13,38,19,38],[19,76,20,81],[3,43,3,47],[19,82,20,82],[13,40,19,40],[13,35,19,35],[13,36,19,36],[13,37,19,37],[23,73,23,74],[23,76,24,81],[23,82,24,82],[15,76,16,81],[15,82,16,82],[17,76,18,81],[17,82,18,82],[18,60,18,61],[13,43,13,47],[13,50,13,57],[13,58,13,59],[13,60,13,61],[14,73,14,74],[15,73,15,74],[16,73,16,74],[18,50,18,57],[18,58,18,59],[13,71,13,72],[24,73,24,74],[23,39,29,39],[23,60,23,61],[23,18,29,18],[29,60,29,61],[23,71,23,72],[23,30,29,30],[23,31,29,31],[23,32,29,32],[25,0,25,9],[25,50,25,57],[25,58,25,59],[27,0,27,9],[27,50,27,57],[27,58,27,59],[24,0,24,9],[24,50,24,57],[24,58,24,59],[24,63,24,70],[24,71,24,72],[29,50,29,57],[29,58,29,59],[25,60,25,61],[25,63,25,70],[25,71,25,72],[23,16,29,16],[23,17,29,17],[23,5,23,7],[23,8,23,10],[25,82,26,82],[26,0,26,9],[26,50,26,57],[26,58,26,59],[26,60,26,61],[26,63,26,70],[26,71,26,72],[26,73,26,74],[23,33,29,33],[23,34,29,34],[23,35,29,35],[23,36,29,36],[23,37,29,37],[23,38,29,38],[23,21,29,21],[23,22,29,22],[23,28,29,28],[23,29,29,29],[23,12,29,12],[23,13,29,13],[23,14,29,14],[23,15,29,15],[24,60,24,61],[23,63,23,70],[29,76,30,81],[29,82,30,82],[30,0,30,9],[30,12,30,13],[30,14,30,41],[30,50,30,57],[30,58,30,59],[30,60,30,61],[23,19,29,19],[23,20,29,20],[27,60,27,61],[27,76,28,81],[27,82,28,82],[28,0,28,9],[28,50,28,57],[28,58,28,59],[28,60,28,61],[23,23,29,23],[23,24,29,24],[23,25,29,25],[23,26,29,26],[23,27,29,27],[25,73,25,74],[25,76,26,81],[31,14,31,41],[33,0,33,4],[33,5,33,7],[33,8,33,10],[33,12,39,12],[33,13,39,13],[33,14,39,14],[33,15,39,15],[33,16,39,16],[33,17,39,17],[33,18,39,18],[33,19,39,19],[33,20,39,20],[33,21,39,21],[33,22,39,22],[33,23,39,23],[33,24,39,24],[33,25,39,25],[33,26,39,26],[33,27,39,27],[33,28,39,28],[33,29,39,29],[33,30,39,30],[37,76,38,81],[37,82,38,82],[33,76,34,81],[33,82,34,82],[34,0,34,9],[34,50,34,57],[34,58,34,59],[34,60,34,61],[34,63,34,70],[34,71,34,72],[34,73,34,74],[33,40,39,40],[33,41,39,41],[33,43,33,47],[33,50,33,57],[33,58,33,59],[33,60,33,61],[33,63,33,70],[33,71,33,72],[33,73,33,74],[33,31,39,31],[33,32,39,32],[33,33,39,33],[33,34,39,34],[39,76,40,81],[39,82,40,82],[40,0,40,9],[40,12,40,13],[40,14,40,41],[40,50,40,57],[40,58,40,59],[40,60,40,61],[35,50,35,57],[35,58,35,59],[35,60,35,61],[35,63,35,70],[35,71,35,72],[35,73,35,74],[35,76,36,81],[35,82,36,82],[36,0,36,9],[36,50,36,57],[36,58,36,59],[36,60,36,61],[36,63,36,70],[36,71,36,72],[36,73,36,74],[33,37,39,37],[38,50,38,57],[38,58,38,59],[38,60,38,61],[39,50,39,57],[39,58,39,59],[39,60,39,61],[33,38,39,38],[33,39,39,39],[37,0,37,9],[37,50,37,57],[37,58,37,59],[37,60,37,61],[33,35,39,35],[33,36,39,36],[45,50,45,57],[45,58,45,59],[43,31,49,31],[43,12,49,12],[43,13,49,13],[43,14,49,14],[43,15,49,15],[43,16,49,16],[43,17,49,17],[43,18,49,18],[43,19,49,19],[43,32,49,32],[43,33,49,33],[43,34,49,34],[43,35,49,35],[43,36,49,36],[43,37,49,37],[47,60,47,61],[43,24,49,24],[43,25,49,25],[43,26,49,26],[43,27,49,27],[43,28,49,28],[46,0,46,9],[46,50,46,57],[46,58,46,59],[46,60,46,61],[43,20,49,20],[43,21,49,21],[44,0,44,9],[43,22,49,22],[43,23,49,23],[43,38,49,38],[43,39,49,39],[43,40,49,40],[43,41,49,41],[43,43,43,47],[43,50,43,57],[43,58,43,59],[47,50,47,57],[47,58,47,59],[45,82,46,82],[43,76,44,81],[43,82,44,82],[44,58,44,59],[44,60,44,61],[44,63,44,70],[44,71,44,72],[44,73,44,74],[43,60,43,61],[43,63,43,70],[46,63,46,70],[46,71,46,72],[46,73,46,74],[45,60,45,61],[45,63,45,70],[43,71,43,72],[45,71,45,72],[45,73,45,74],[53,22,59,22],[59,58,59,59],[47,76,48,81],[47,82,48,82],[48,0,48,9],[48,50,48,57],[48,58,48,59],[48,60,48,61],[49,50,49,57],[49,58,49,59],[49,60,49,61],[49,76,50,81],[49,82,50,82],[50,0,50,9],[50,12,50,13],[50,14,50,41],[50,50,50,57],[50,58,50,59],[50,60,50,61],[43,29,49,29],[43,30,49,30],[45,76,46,81],[43,73,43,74],[44,50,44,57],[59,50,59,57],[59,60,59,61],[53,12,59,12],[53,13,59,13],[53,14,59,14],[53,15,59,15],[53,16,59,16],[55,0,55,9],[58,0,58,9],[54,0,54,9],[54,58,54,59],[53,29,59,29],[53,30,59,30],[53,32,59,32],[53,33,59,33],[53,34,59,34],[53,35,59,35],[53,36,59,36],[53,26,59,26],[53,27,59,27],[53,18,59,18],[53,19,59,19],[53,20,59,20],[53,21,59,21],[55,63,55,70],[55,71,55,72],[55,73,55,74],[55,60,55,61],[54,50,54,57],[54,60,54,61],[55,50,55,57],[55,58,55,59],[58,50,58,57],[58,58,58,59],[58,60,58,61],[55,82,56,82],[56,0,56,9],[56,50,56,57],[56,58,56,59],[56,60,56,61],[56,63,56,70],[56,71,56,72],[56,73,56,74],[53,37,59,37],[53,38,59,38],[53,39,59,39],[57,0,57,9],[57,50,57,57],[57,58,57,59],[57,60,57,61],[57,76,58,81],[57,82,58,82],[53,76,54,81],[53,82,54,82],[59,82,60,82],[60,0,60,9],[60,12,60,13],[60,14,60,41],[54,63,54,70],[69,2,69,4],[69,5,69,10],[59,76,60,81],[63,12,69,12],[63,13,69,13],[63,14,69,14],[63,15,69,15],[63,16,69,16],[63,17,69,17],[63,18,69,18],[63,19,69,19],[53,17,59,17],[55,76,56,81],[54,71,54,72],[54,73,54,74],[53,40,59,40],[53,41,59,41],[53,43,53,47],[53,50,53,57],[53,58,53,59],[53,60,53,61],[53,63,53,70],[53,71,53,72],[53,73,53,74],[63,71,63,72],[63,73,63,74],[63,76,64,81],[63,27,69,27],[63,28,69,28],[62,33,62,41],[60,50,60,57],[64,63,64,70],[60,58,60,59],[60,60,60,61],[53,31,59,31],[63,82,64,82],[64,0,64,9],[64,50,64,57],[64,58,64,59],[64,60,64,61],[64,71,64,72],[64,73,64,74],[63,5,63,7],[63,8,63,10],[63,38,69,38],[63,39,69,39],[63,40,69,40],[63,41,69,41],[63,43,63,47],[63,50,63,57],[63,58,63,59],[63,60,63,61],[63,63,63,70],[65,50,65,57],[65,58,65,59],[65,71,65,72],[65,73,65,74],[63,22,69,22],[63,23,69,23],[65,82,66,82],[66,0,66,9],[66,58,66,59],[65,76,66,81],[66,50,66,57],[66,60,66,61],[66,63,66,70],[66,71,66,72],[66,73,66,74],[65,60,65,61],[65,63,65,70],[63,29,69,29],[63,30,69,30],[63,31,69,31],[63,32,69,32],[63,33,69,33],[63,34,69,34],[63,35,69,35],[63,36,69,36],[63,37,69,37],[67,76,68,81],[65,0,65,9],[67,0,67,9],[73,18,79,18],[73,19,79,19],[73,20,79,20],[73,21,79,21],[73,22,79,22],[67,82,68,82],[68,0,68,9],[68,50,68,57],[68,58,68,59],[68,60,68,61],[69,50,69,57],[69,58,69,59],[69,60,69,61],[69,76,70,81],[69,82,70,82],[70,0,70,9],[70,12,70,13],[70,14,70,41],[70,50,70,57],[70,58,70,59],[70,60,70,61],[67,50,67,57],[67,58,67,59],[67,60,67,61],[77,76,78,81],[73,76,74,81],[73,37,79,37],[73,38,79,38],[73,39,79,39],[73,82,74,82],[74,0,74,9],[74,50,74,57],[77,82,78,82],[78,0,78,9],[78,50,78,57],[74,58,74,59],[74,60,74,61],[74,63,74,70],[74,71,74,72],[74,73,74,74],[73,40,79,40],[73,41,79,41],[73,43,73,47],[73,50,73,57],[73,58,73,59],[73,60,73,61],[73,63,73,70],[73,71,73,72],[73,73,73,74],[75,60,75,61],[75,63,75,70],[76,71,76,72],[76,73,76,74],[77,50,77,57],[77,58,77,59],[77,60,77,61],[75,71,75,72],[75,73,75,74],[75,50,75,57],[75,58,75,59],[78,58,78,59],[78,60,78,61],[73,30,79,30],[73,36,79,36],[79,2,79,4],[79,5,79,10],[73,0,73,4],[73,5,73,7],[73,8,73,10],[73,12,79,12],[73,13,79,13],[73,23,79,23],[73,24,79,24],[73,25,79,25],[73,26,79,26],[73,27,79,27],[73,28,79,28],[73,29,79,29],[75,0,75,9],[77,0,77,9],[73,14,79,14],[73,15,79,15],[73,16,79,16],[73,17,79,17],[81,14,81,41],[79,50,79,57],[79,58,79,59],[79,60,79,61],[79,76,80,81],[79,82,80,82],[80,0,80,9],[80,12,80,13],[80,14,80,41],[80,50,80,57],[80,58,80,59],[80,60,80,61],[73,31,79,31],[73,32,79,32],[73,33,79,33],[73,34,79,34],[73,35,79,35],[75,76,76,81],[75,82,76,82],[76,0,76,9],[76,50,76,57],[76,58,76,59],[76,60,76,61],[76,63,76,70],[52,0,52,3],[52,4,52,9],[62,0,62,3],[62,4,62,9],[72,33,72,41],[0,43,1,56],[12,33,12,41],[22,33,22,41],[32,33,32,41],[42,33,42,41],[52,33,52,41],[61,14,61,41],[41,14,41,41],[63,20,69,20],[63,21,69,21],[63,24,69,24],[63,25,69,25],[63,26,69,26],[51,14,51,41],[53,23,59,23],[53,24,59,24],[53,25,59,25],[53,28,59,28],[71,14,71,41],[72,0,72,3],[72,4,72,9],[2,12,2,26],[2,28,2,31],[12,12,12,26],[12,28,12,31],[22,12,22,26],[22,28,22,31],[32,12,32,26],[32,28,32,31],[42,12,42,26],[42,28,42,31],[52,12,52,26],[52,28,52,31],[62,12,62,26],[62,28,62,31],[72,12,72,26],[72,28,72,31],[22,0,22,3],[22,4,22,9],[32,0,32,3],[32,4,32,9],[42,0,42,3],[42,4,42,9]]}
["Model",null,null,null,null,null,null,null,null,null,null,null,null,null,null,"Fill in the yellow highlighted cells as appropriate.",null,null,null,null,null,null,null,null,null,null,null,null,"See definitions for each cell on the Notes tab.",null,null,null,null,null,null,null,null,null,null,null,null,null,null,"Cells that become highlighted in red indicate that the voltage at the RRU falls below the Minimum RRU Operating Voltage and the RRU will not operate.  A cell that reads \"INVALID\" indicates that the loss in the cable would exceed the power rating of the RRU and the calculation cannot be performed. ",null,null,null,null,null,null,null,null,null,null,null,null,null,null,"without Converter",null,"with Converter",null,null,null,null,null,null,null,null,null,null,"without Converter",null,"with Converter"]
["Number of Radio Types",null,null,null,null,null,null,null,null,null,null,null,"TOTAL # OF POWER EXTEND CONVERTERS=",null,null,null,null,null,null,null,null,null,0,null,null,null,null,"= CB,Fuse, or End of Panel",null,null,null,null,null,null,null,"= Do Not Use"]
["Radio Type #1:",null,null,null,"Converters per trunk feed:",null,null,null,null,null,{"$f":"BI9","v":0},null,null,null,null,null,null,null,null,null,null,null,null,null,null,null,null,null,null,null,null,null,null,"ADDITIONAL INPUT & MORE INFO"]
["Select Installation type",null,null,null,null,null,null,null,null,null,null,null,null,null,null,null,null,null,null,null,null,null,null,null,null,null,null,null,null,null,null,null,null,null,null,null,null,null,null,"`",null,null,null,"RRU Trunk Feed Busy Hour Input Power (W)",null,null,null,null,{"$f":"$K$11*0.65","v":0},null,"RRU Voltage (VDC) at Min Source Voltage and Peak Power",null,null,null,null,null,null,null,{"$f":"IFERROR(($AW$5+SQRT($AW$5*$AW$5-4*$K$11*$AW$10))/2,\"Invalid\")","v":42},null,{"$f":"IFERROR(($AW$6+SQRT($AW$6*$AW$6-4*$K$11*$AW$10))/2,\"Invalid\")","v":58},null,null,"RRU Voltage (VDC) at Min Source Voltage and Busy Hour",null,null,null,null,null,null,null,{"$f":"IFERROR(($AW$5+SQRT($AW$5*$AW$5-4*$AW$4*$AW$10))/2,\"Invalid\")","v":42},null,{"$f":"IFERROR(($AW$6+SQRT($AW$6*$AW$6-4*$AW$4*$AW$10))/2,\"Invalid\")","v":58},null,null,"Power Extend Converter Average Power Level Above which a Space is required Between Each 4 Units (W)",null,null,null,null,null,250]
["Trunk Cable Length - one-way",null,null,null,null,null,null,null,null,null,200,"ft",null,null,null,null,null,null,null,null,null,null,null,null,null,null,null,null,null,null,null,null,null,null,null,null,null,null,null,null,null,null,null,"Minimum Source Voltage (V)",null,null,null,null,42,null,"RRU Trunk Feed Current (A) at Min Source Voltage and Peak Power",null,null,null,null,null,null,null,{"$f":"IFERROR($K$11/$BG$4,\"Invalid\")","v":0},null,{"$f":"IFERROR($K$11/$BI$4,\"Invalid\")","v":0},null,null,"RRU Trunk Feed Current (A) at Min Source Voltage and Busy Hour",null,null,null,null,null,null,null,{"$f":"IFERROR($AW$4/$BT$4,\"Invalid\")","v":0},null,{"$f":"IFERROR($AW$4/$BV$4,\"Invalid\")","v":0}]
["Trunk Cable Size (AWG - 4, 6, 8)",null,null,null,null,null,null,null,null,null,6,null,null,null,null,null,null,null,null,null,null,null,null,null,null,null,null,null,null,null,null,null,null,null,null,null,null,null,null,null,null,null,null,"Converter Output Voltage (V)",null,null,null,null,58,null,"Source Power (W) per RRU Trunk Feed at Min Source V and Peak RRU Power",null,null,null,null,null,null,null,{"$f":"IFERROR($AW$5*$BG$5,\"Invalid\")","v":0},null,{"$f":"IFERROR($AW$6*$BI$5/0.98,\"Invalid\")","v":0},null,null,"Source Power (W) at Min Source V and Busy Hour per RRU Trunk Feed",null,null,null,null,null,null,null,{"$f":"IFERROR($AW$5*$BT$5,\"Invalid\")","v":0},null,{"$f":"IFERROR($AW$6*$BV$5/0.98,\"Invalid\")","v":0},null,null,"Power Extend Converter Average Power Level Above which a Space is required Between Each 3 Units (W)",null,null,null,null,null,475]
["Jumper Cable Length - one-way",null,null,null,null,null,null,null,null,null,15,"ft",null,null,null,null,null,null,null,null,null,null,null,null,null,null,null,null,null,null,null,null,null,null,null,null,null,null,null,null,null,null,null,"Minimum RRU Operating Voltage (VDC)",null,null,null,null,40,null,"Total Source Power (W) at Min Source Voltage and Peak RRU Power",null,null,null,null,null,null,null,{"$f":"IFERROR($K$9*$BG$6,\"Invalid\")","v":0},null,{"$f":"IFERROR($K$9*$BI$6,\"Invalid\")","v":0},null,null,"Total Source Power (W) at Min Source Voltage and Busy Hour",null,null,null,null,null,null,null,{"$f":"IFERROR($K$9*$BT$6,\"Invalid\")","v":0},null,{"$f":"IFERROR($K$9*$BV$6,\"Invalid\")","v":0}]
["Jumper Cable Size (AWG - 8, 10, or 12)",null,null,null,null,null,null,null,null,null,8,null,null,null,null,null,null,null,null,null,null,null,null,null,null,null,null,null,null,null,null,null,null,null,null,null,null,null,null,null,null,null,null,"Peak Power Rating of Power Extend Conv (W)",null,null,null,null,1000,null,"Peak Power System Current (A) Required for RRUs",null,null,null,null,null,null,null,{"$f":"IFERROR($BG$7/$AW$5,\"Invalid\")","v":0},null,{"$f":"IFERROR($BI$7/0.98/$AW$5,\"Invalid\")","v":0},null,null,null,null,null,null,null,null,null,null,null,null,null,null,null,"Power Extend Converter Average Power Level Above which a Space is required Between Each 2 Units (W)",null,null,null,null,null,525]
["Total Quantity of RRU Trunk Feeds",null,null,null,null,null,null,null,null,null,3,null,null,null,null,null,null,null,null,null,null,null,null,null,null,null,null,null,null,null,null,null,null,null,null,null,null,null,null,null,null,null,null,"Total Cable loop length",null,null,null,null,{"$f":"2*($K$5+$K$7)","v":430},"ft","Qty of Power Extend Converters Req'd per RRU Trunk Feed",null,null,null,null,null,null,null,"N/A",null,{"$f":"IFERROR(IF($BI$4<$AW$7,0,IF(OR($BG$4<$AW$7,$BG$4=\"Invalid\"),ROUNDUP($BI$6/$AW$8,0),0)),0)","v":0},null,null,null,"`"]
["Radio",null,null,null,null,null,null,null,null,null,null,null,null,null,null,null,null,null,null,null,null,null,null,null,null,null,null,null,null,null,null,null,null,null,null,null,null,null,null,null,null,null,null,"Cable Resistance (Ohms)",null,null,null,null,0.19610000000000002,null,"Qty of Power Extend Converters Req'd per Site",null,null,null,null,null,null,null,"N/A",null,{"$f":"IFERROR($BI$9*$K$9,0)","v":0},null,null,null,null,null,null,null,null,null,null,null,null,null,null,null,"Power Extend Converter Average Power Level Above which a Space is required Between Each Unit (W)",null,null,null,null,null,650]
["RRU Trunk Feed Peak DC Input Power (W)",null,null,null,null,null,null,null,null,null,null,null,"NOTE:",null,"No Converter(s) are needed because the voltage drop without converters is OK.  See detailed information to the right.",null,null,null,null,null,null,null,null,null,null,null,null,null,null,null,null,null,null,null,null,null,null,null,null,null,null,null,null,null,null,null,null,null,null,null,"# of Total Bullet Positions Required ",null,null,null,null,null,null,null,"N/A",null,{"$f":"IFERROR(IF($BV$7/$BI$10>$CE$10,2*$BI$10-1,IF($BV$7/$BI$10>$CE$8,INT(1.499*$BI$10),IF($BV$7/$BI$10>$CE$6,INT(1.33*$BI$10),IF($BV$7/$BI$10>$CE$4,INT(1.249*$BI$10),$BI$10)))),0)","v":0}]
[]
["Radio Type #2:",null,null,null,"Converters per trunk feed:",null,null,null,null,null,{"$f":"BI19","v":0},null,null,null,null,null,null,null,null,null,null,null,null,null,null,null,null,null,null,null,null,null,null,"ADDITIONAL INPUT & MORE INFO"]
["Select Installation type",null,null,null,null,null,null,null,null,null,null,null,null,null,null,null,null,null,null,null,null,null,null,null,null,null,null,null,null,null,null,null,null,null,null,null,null,null,null,null,null,null,null,"RRU Trunk Feed Busy Hour Input Power (W)",null,null,null,null,{"$f":"$K$21*0.65","v":0},null,"RRU Voltage (VDC) at Min Source Voltage and Peak Power",null,null,null,null,null,null,null,{"$f":"IFERROR(($AW$15+SQRT($AW$15*$AW$15-4*$K$21*$AW$20))/2,\"Invalid\")","v":42},null,{"$f":"IFERROR(($AW$16+SQRT($AW$16*$AW$16-4*$K$21*$AW$20))/2,\"Invalid\")","v":58},null,null,"RRU Voltage (VDC) at Min Source Voltage and Busy Hour",null,null,null,null,null,null,null,{"$f":"IFERROR(($AW$15+SQRT($AW$15*$AW$15-4*$AW$14*$AW$20))/2,\"Invalid\")","v":42},null,{"$f":"IFERROR(($AW$16+SQRT($AW$16*$AW$16-4*$AW$14*$AW$20))/2,\"Invalid\")","v":58},null,null,"Power Extend Converter Average Power Level Above which a Space is required Between Each 4 Units (W)",null,null,null,null,null,250]
["Trunk Cable Length - one-way",null,null,null,null,null,null,null,null,null,500,"ft",null,null,null,null,null,null,null,null,null,null,null,null,null,null,null,null,null,null,null,null,null,null,null,null,null,null,null,null,null,null,null,"Minimum Source Voltage (V)",null,null,null,null,42,null,"RRU Trunk Feed Current (A) at Min Source Voltage and Peak Power",null,null,null,null,null,null,null,{"$f":"IFERROR($K$21/$BG$14,\"Invalid\")","v":0},null,{"$f":"IFERROR($K$21/$BI$14,\"Invalid\")","v":0},null,null,"RRU Trunk Feed Current (A) at Min Source Voltage and Busy Hour",null,null,null,null,null,null,null,{"$f":"IFERROR($AW$14/$BT$14,\"Invalid\")","v":0},null,{"$f":"IFERROR($AW$14/$BV$14,\"Invalid\")","v":0}]
["Trunk Cable Size (AWG - 4, 6, 8)",null,null,null,null,null,null,null,null,null,6,null,null,null,null,null,null,null,null,null,null,null,null,null,null,null,null,null,null,null,null,null,null,null,null,null,null,null,null,null,null,null,null,"Converter Output Voltage (V)",null,null,null,null,58,null,"Source Power (W) per RRU Trunk Feed at Min Source V and Peak RRU Power",null,null,null,null,null,null,null,{"$f":"IFERROR($AW$15*$BG$15,\"Invalid\")","v":0},null,{"$f":"IFERROR($AW$16*$BI$15/0.98,\"Invalid\")","v":0},null,null,"Source Power (W) at Min Source V and Busy Hour per RRU Trunk Feed",null,null,null,null,null,null,null,{"$f":"IFERROR($AW$15*$BT$15,\"Invalid\")","v":0},null,{"$f":"IFERROR($AW$16*$BV$15/0.98,\"Invalid\")","v":0},null,null,"Power Extend Converter Average Power Level Above which a Space is required Between Each 3 Units (W)",null,null,null,null,null,475]
["Jumper Cable Length - one-way",null,null,null,null,null,null,null,null,null,15,"ft",null,null,null,null,null,null,null,null,null,null,null,null,null,null,null,null,null,null,null,null,null,null,null,null,null,null,null,null,null,null,null,"Minimum RRU Operating Voltage (VDC)",null,null,null,null,40,null,"Total Source Power (W) at Min Source Voltage and Peak RRU Power",null,null,null,null,null,null,null,{"$f":"IFERROR($K$19*$BG$16,\"Invalid\")","v":0},null,{"$f":"IFERROR($K$19*$BI$16,\"Invalid\")","v":0},null,null,"Total Source Power (W) at Min Source Voltage and Busy Hour",null,null,null,null,null,null,null,{"$f":"IFERROR($K$19*$BT$16,\"Invalid\")","v":0},null,{"$f":"IFERROR($K$19*$BV$16,\"Invalid\")","v":0}]
["Jumper Cable Size (AWG - 8, 10, or 12)",null,null,null,null,null,null,null,null,null,8,null,null,null,null,null,null,null,null,null,null,null,null,null,null,null,null,null,null,null,null,null,null,null,null,null,null,null,null,null,null,null,null,"Peak Power Rating of Power Extend Conv (W)",null,null,null,null,1000,null,"Peak Power System Current (A) Required for RRUs",null,null,null,null,null,null,null,{"$f":"IFERROR($BG$17/$AW$15,\"Invalid\")","v":0},null,{"$f":"IFERROR($BI$17/0.98/$AW$15,\"Invalid\")","v":0},null,null,null,null,null,null,null,null,null,null,null,null,null,null,null,"Power Extend Converter Average Power Level Above which a Space is required Between Each 2 Units (W)",null,null,null,null,null,525]
["Total Quantity of RRU Trunk Feeds",null,null,null,null,null,null,null,null,null,3,null,null,null,null,null,null,null,null,null,null,null,null,null,null,null,null,null,null,null,null,null,null,null,null,null,null,null,null,null,null,null,null,"Total Cable loop length",null,null,null,null,{"$f":"2*($K$15+$K$17)","v":1030},"ft","Qty of Power Extend Converters Req'd per RRU Trunk Feed",null,null,null,null,null,null,null,"N/A",null,{"$f":"IFERROR(IF($BI$14<$AW$17,0,IF(OR($BG$14<$AW$17,$BG$14=\"Invalid\"),ROUNDUP($BI$16/$AW$18,0),0)),0)","v":0}]
["Radio",null,null,null,null,null,null,null,null,null,null,null,null,null,null,null,null,null,null,null,null,null,null,null,null,null,null,null,null,null,null,null,null,null,null,null,null,null,null,null,null,null,null,"Cable Resistance (Ohms)",null,null,null,null,0.46010000000000001,null,"Qty of Power Extend Converters Req'd per Site",null,null,null,null,null,null,null,"N/A",null,{"$f":"IFERROR($BI$19*$K$19,0)","v":0},null,null,null,null,null,null,null,null,null,null,null,null,null,null,null,"Power Extend Converter Average Power Level Above which a Space is required Between Each Unit (W)",null,null,null,null,null,650]
["RRU Trunk Feed Peak DC Input Power (W)",null,null,null,null,null,null,null,null,null,null,null,"NOTE:",null,"No Converter(s) are needed because the voltage drop without converters is OK.  See detailed information to the right.",null,null,null,null,null,null,null,null,null,null,null,null,null,null,null,null,null,null,null,null,null,null,null,null,null,null,null,null,null,null,null,null,null,null,null,"# of Total Bullet Positions Required ",null,null,null,null,null,null,null,"N/A",null,{"$f":"IFERROR(IF($BV$17/$BI$20>$CE$20,2*$BI$20-1,IF($BV$17/$BI$20>$CE$18,INT(1.499*$BI$20),IF($BV$17/$BI$20>$CE$16,INT(1.33*$BI$20),IF($BV$17/$BI$20>$CE$14,INT(1.249*$BI$20),$BI$20)))),0)","v":0}]
[]
["Radio Type #3:",null,null,null,"Converters per trunk feed:",null,null,null,null,null,{"$f":"BI29","v":0},null,null,null,null,null,null,null,null,null,null,null,null,null,null,null,null,null,null,null,null,null,null,"ADDITIONAL INPUT & MORE INFO"]
["Select Installation type",null,null,null,null,null,null,null,null,null,null,null,null,null,null,null,null,null,null,null,null,null,null,null,null,null,null,null,null,null,null,null,null,null,null,null,null,null,null,null,null,null,null,"RRU Trunk Feed Busy Hour Input Power (W)",null,null,null,null,{"$f":"$K$31*0.65","v":0},null,"RRU Voltage (VDC) at Min Source Voltage and Peak Power",null,null,null,null,null,null,null,{"$f":"IFERROR(($AW$25+SQRT($AW$25*$AW$25-4*$K$31*$AW$30))/2,\"Invalid\")","v":42},null,{"$f":"IFERROR(($AW$26+SQRT($AW$26*$AW$26-4*$K$31*$AW$30))/2,\"Invalid\")","v":58},null,null,"RRU Voltage (VDC) at Min Source Voltage and Busy Hour",null,null,null,null,null,null,null,{"$f":"IFERROR(($AW$25+SQRT($AW$25*$AW$25-4*$AW$24*$AW$30))/2,\"Invalid\")","v":42},null,{"$f":"IFERROR(($AW$26+SQRT($AW$26*$AW$26-4*$AW$24*$AW$30))/2,\"Invalid\")","v":58},null,null,"Power Extend Converter Average Power Level Above which a Space is required Between Each 4 Units (W)",null,null,null,null,null,250]
["Trunk Cable Length - one-way",null,null,null,null,null,null,null,null,null,500,"ft",null,null,null,null,null,null,null,null,null,null,null,null,null,null,null,null,null,null,null,null,null,null,null,null,null,null,null,null,null,null,null,"Minimum Source Voltage (V)",null,null,null,null,42,null,"RRU Trunk Feed Current (A) at Min Source Voltage and Peak Power",null,null,null,null,null,null,null,{"$f":"IFERROR($K$31/$BG$24,\"Invalid\")","v":0},null,{"$f":"IFERROR($K$31/$BI$24,\"Invalid\")","v":0},null,null,"RRU Trunk Feed Current (A) at Min Source Voltage and Busy Hour",null,null,null,null,null,null,null,{"$f":"IFERROR($AW$24/$BT$24,\"Invalid\")","v":0},null,{"$f":"IFERROR($AW$24/$BV$24,\"Invalid\")","v":0}]
["Trunk Cable Size (AWG - 4, 6, 8)",null,null,null,null,null,null,null,null,null,6,null,null,null,null,null,null,null,null,null,null,null,null,null,null,null,null,null,null,null,null,null,null,null,null,null,null,null,null,null,null,null,null,"Converter Output Voltage (V)",null,null,null,null,58,null,"Source Power (W) per RRU Trunk Feed at Min Source V and Peak RRU Power",null,null,null,null,null,null,null,{"$f":"IFERROR($AW$25*$BG$25,\"Invalid\")","v":0},null,{"$f":"IFERROR($AW$26*$BI$25/0.98,\"Invalid\")","v":0},null,null,"Source Power (W) at Min Source V and Busy Hour per RRU Trunk Feed",null,null,null,null,null,null,null,{"$f":"IFERROR($AW$25*$BT$25,\"Invalid\")","v":0},null,{"$f":"IFERROR($AW$26*$BV$25/0.98,\"Invalid\")","v":0},null,null,"Power Extend Converter Average Power Level Above which a Space is required Between Each 3 Units (W)",null,null,null,null,null,475]
["Jumper Cable Length - one-way",null,null,null,null,null,null,null,null,null,15,"ft",null,null,null,null,null,null,null,null,null,null,null,null,null,null,null,null,null,null,null,null,null,null,null,null,null,null,null,null,null,null,null,"Minimum RRU Operating Voltage (VDC)",null,null,null,null,40,null,"Total Source Power (W) at Min Source Voltage and Peak RRU Power",null,null,null,null,null,null,null,{"$f":"IFERROR($K$29*$BG$26,\"Invalid\")","v":0},null,{"$f":"IFERROR($K$29*$BI$26,\"Invalid\")","v":0},null,null,"Total Source Power (W) at Min Source Voltage and Busy Hour",null,null,null,null,null,null,null,{"$f":"IFERROR($K$29*$BT$26,\"Invalid\")","v":0},null,{"$f":"IFERROR($K$29*$BV$26,\"Invalid\")","v":0}]
["Jumper Cable Size (AWG - 8, 10, or 12)",null,null,null,null,null,null,null,null,null,8,null,null,null,null,null,null,null,null,null,null,null,null,null,null,null,null,null,null,null,null,null,null,null,null,null,null,null,null,null,null,null,null,"Peak Power Rating of Power Extend Conv (W)",null,null,null,null,1000,null,"Peak Power System Current (A) Required for RRUs",null,null,null,null,null,null,null,{"$f":"IFERROR($BG$27/$AW$25,\"Invalid\")","v":0},null,{"$f":"IFERROR($BI$27/0.98/$AW$25,\"Invalid\")","v":0},null,null,null,null,null,null,null,null,null,null,null,null,null,null,null,"Power Extend Converter Average Power Level Above which a Space is required Between Each 2 Units (W)",null,null,null,null,null,525]
["Total Quantity of RRU Trunk Feeds",null,null,null,null,null,null,null,null,null,3,null,null,null,null,null,null,null,null,null,null,null,null,null,null,null,null,null,null,null,null,null,null,null,null,null,null,null,null,null,null,null,null,"Total Cable loop length",null,null,null,null,{"$f":"2*($K$25+$K$27)","v":1030},"ft","Qty of Power Extend Converters Req'd per RRU Trunk Feed",null,null,null,null,null,null,null,"N/A",null,{"$f":"IFERROR(IF($BI$24<$AW$27,0,IF(OR($BG$24<$AW$27,$BG$24=\"Invalid\"),ROUNDUP($BI$26/$AW$28,0),0)),0)","v":0},null,null,null,"`"]
["Radio",null,null,null,null,null,null,null,null,null,null,null,null,null,null,null,null,null,null,null,null,null,null,null,null,null,null,null,null,null,null,null,null,null,null,null,null,null,null,null,null,null,null,"Cable Resistance (Ohms)",null,null,null,null,0.46010000000000001,null,"Qty of Power Extend Converters Req'd per Site",null,null,null,null,null,null,null,"N/A",null,{"$f":"IFERROR($BI$29*$K$29,0)","v":0},null,null,null,null,null,null,null,null,null,null,null,null,null,null,null,"Power Extend Converter Average Power Level Above which a Space is required Between Each Unit (W)",null,null,null,null,null,650]
["RRU Trunk Feed Peak DC Input Power (W)",null,null,null,null,null,null,null,null,null,null,null,"NOTE:",null,"No Converter(s) are needed because the voltage drop without converters is OK.  See detailed in3formation to the right.",null,null,null,null,null,null,null,null,null,null,null,null,null,null,null,null,null,null,null,null,null,null,null,null,null,null,null,null,null,null,null,null,null,null,null,"# of Total Bullet Positions Required ",null,null,null,null,null,null,null,"N/A",null,{"$f":"IFERROR(IF($BV$27/$BI$30>$CE$30,2*$BI$30-1,IF($BV$27/$BI$30>$CE$28,INT(1.499*$BI$30),IF($BV$27/$BI$30>$CE$26,INT(1.33*$BI$30),IF($BV$27/$BI$30>$CE$24,INT(1.249*$BI$30),$BI$30)))),0)","v":0}]
[]
["Radio Type #4:",null,null,null,"Converters per trunk feed:",null,null,null,null,null,{"$f":"BI39","v":0},null,null,null,null,null,null,null,null,null,null,null,null,null,null,null,null,null,null,null,null,null,null,"ADDITIONAL INPUT & MORE INFO"]
["Select Installation type",null,null,null,null,null,null,null,null,null,null,null,null,null,null,null,null,null,null,null,null,null,null,null,null,null,null,null,null,null,null,null,null,null,null,null,null,null,null,null,null,null,null,"RRU Trunk Feed Busy Hour Input Power (W)",null,null,null,null,{"$f":"$K$41*0.65","v":0},null,"RRU Voltage (VDC) at Min Source Voltage and Peak Power",null,null,null,null,null,null,null,{"$f":"IFERROR(($AW$35+SQRT($AW$35*$AW$35-4*$K$41*$AW$40))/2,\"Invalid\")","v":42},null,{"$f":"IFERROR(($AW$36+SQRT($AW$36*$AW$36-4*$K$41*$AW$40))/2,\"Invalid\")","v":58},null,null,"RRU Voltage (VDC) at Min Source Voltage and Busy Hour",null,null,null,null,null,null,null,{"$f":"IFERROR(($AW$35+SQRT($AW$35*$AW$35-4*$AW$34*$AW$40))/2,\"Invalid\")","v":42},null,{"$f":"IFERROR(($AW$36+SQRT($AW$36*$AW$36-4*$AW$34*$AW$40))/2,\"Invalid\")","v":58},null,null,"Power Extend Converter Average Power Level Above which a Space is required Between Each 4 Units (W)",null,null,null,null,null,250]
["Trunk Cable Length - one-way",null,null,null,null,null,null,null,null,null,500,"ft",null,null,null,null,null,null,null,null,null,null,null,null,null,null,null,null,null,null,null,null,null,null,null,null,null,null,null,null,null,null,null,"Minimum Source Voltage (V)",null,null,null,null,42,null,"RRU Trunk Feed Current (A) at Min Source Voltage and Peak Power",null,null,null,null,null,null,null,{"$f":"IFERROR($K$41/$BG$34,\"Invalid\")","v":0},null,{"$f":"IFERROR($K$41/$BI$34,\"Invalid\")","v":0},null,null,"RRU Trunk Feed Current (A) at Min Source Voltage and Busy Hour",null,null,null,null,null,null,null,{"$f":"IFERROR($AW$34/$BT$34,\"Invalid\")","v":0},null,{"$f":"IFERROR($AW$34/$BV$34,\"Invalid\")","v":0}]
["Trunk Cable Size (AWG - 4, 6, 8)",null,null,null,null,null,null,null,null,null,6,null,null,null,null,null,null,null,null,null,null,null,null,null,null,null,null,null,null,null,null,null,null,null,null,null,null,null,null,null,null,null,null,"Converter Output Voltage (V)",null,null,null,null,58,null,"Source Power (W) per RRU Trunk Feed at Min Source V and Peak RRU Power",null,null,null,null,null,null,null,{"$f":"IFERROR($AW$35*$BG$35,\"Invalid\")","v":0},null,{"$f":"IFERROR($AW$36*$BI$35/0.98,\"Invalid\")","v":0},null,null,"Source Power (W) at Min Source V and Busy Hour per RRU Trunk Feed",null,null,null,null,null,null,null,{"$f":"IFERROR($AW$35*$BT$35,\"Invalid\")","v":0},null,{"$f":"IFERROR($AW$36*$BV$35/0.98,\"Invalid\")","v":0},null,null,"Power Extend Converter Average Power Level Above which a Space is required Between Each 3 Units (W)",null,null,null,null,null,475]
["Jumper Cable Length - one-way",null,null,null,null,null,null,null,null,null,15,"ft",null,null,null,null,null,null,null,null,null,null,null,null,null,null,null,null,null,null,null,null,null,null,null,null,null,null,null,null,null,null,null,"Minimum RRU Operating Voltage (VDC)",null,null,null,null,40,null,"Total Source Power (W) at Min Source Voltage and Peak RRU Power",null,null,null,null,null,null,null,{"$f":"IFERROR($K$39*$BG$36,\"Invalid\")","v":0},null,{"$f":"IFERROR($K$39*$BI$36,\"Invalid\")","v":0},null,null,"Total Source Power (W) at Min Source Voltage and Busy Hour",null,null,null,null,null,null,null,{"$f":"IFERROR($K$39*$BT$36,\"Invalid\")","v":0},null,{"$f":"IFERROR($K$39*$BV$36,\"Invalid\")","v":0}]
["Jumper Cable Size (AWG - 8, 10, or 12)",null,null,null,null,null,null,null,null,null,8,null,null,null,null,null,null,null,null,null,null,null,null,null,null,null,null,null,null,null,null,null,null,null,null,null,null,null,null,null,null,null,null,"Peak Power Rating of Power Extend Conv (W)",null,null,null,null,1000,null,"Peak Power System Current (A) Required for RRUs",null,null,null,null,null,null,null,{"$f":"IFERROR($BG$37/$AW$35,\"Invalid\")","v":0},null,{"$f":"IFERROR($BI$37/0.98/$AW$35,\"Invalid\")","v":0},null,null,null,null,null,null,null,null,null,null,null,null,null,null,null,"Power Extend Converter Average Power Level Above which a Space is required Between Each 2 Units (W)",null,null,null,null,null,525]
["Total Quantity of RRU Trunk Feeds",null,null,null,null,null,null,null,null,null,3,null,null,null,null,null,null,null,null,null,null,null,null,null,null,null,null,null,null,null,null,null,null,null,null,null,null,null,null,null,null,null,null,"Total Cable loop length",null,null,null,null,{"$f":"2*($K$35+$K$37)","v":1030},"ft","Qty of Power Extend Converters Req'd per RRU Trunk Feed",null,null,null,null,null,null,null,"N/A",null,{"$f":"IFERROR(IF($BI$34<$AW$37,0,IF(OR($BG$34<$AW$37,$BG$34=\"Invalid\"),ROUNDUP($BI$36/$AW$38,0),0)),0)","v":0}]
["Radio",null,null,null,null,null,null,null,null,null,null,null,null,null,null,null,null,null,null,null,null,null,null,null,null,null,null,null,null,null,null,null,null,null,null,null,null,null,null,null,null,null,null,"Cable Resistance (Ohms)",null,null,null,null,0.46010000000000001,null,"Qty of Power Extend Converters Req'd per Site",null,null,null,null,null,null,null,"N/A",null,{"$f":"IFERROR($BI$39*$K$39,0)","v":0},null,null,null,null,null,null,null,null,null,null,null,null,null,null,null,"Power Extend Converter Average Power Level Above which a Space is required Between Each Unit (W)",null,null,null,null,null,650]
["RRU Trunk Feed Peak DC Input Power (W)",null,null,null,null,null,null,null,null,null,null,null,"NOTE:",null,"No Converter(s) are needed because the voltage drop without converters is OK.  See detailed in3formation to the right.",null,null,null,null,null,null,null,null,null,null,null,null,null,null,null,null,null,null,null,null,null,null,null,null,null,null,null,null,null,null,null,null,null,null,null,"# of Total Bullet Positions Required ",null,null,null,null,null,null,null,"N/A",null,{"$f":"IFERROR(IF($BV$37/$BI$40>$CE$40,2*$BI$40-1,IF($BV$37/$BI$40>$CE$38,INT(1.499*$BI$40),IF($BV$37/$BI$40>$CE$36,INT(1.33*$BI$40),IF($BV$37/$BI$40>$CE$34,INT(1.249*$BI$40),$BI$40)))),0)","v":0}]
[]
["Radio Type #5:",null,null,null,"Converters per trunk feed:",null,null,null,null,null,{"$f":"BI49","v":0},null,null,null,null,null,null,null,null,null,null,null,null,null,null,null,null,null,null,null,null,null,null,"ADDITIONAL INPUT & MORE INFO"]
["Select Installation type",null,null,null,null,null,null,null,null,null,null,null,null,null,null,null,null,null,null,null,null,null,null,null,null,null,null,null,null,null,null,null,null,null,null,null,null,null,null,null,null,null,null,"RRU Trunk Feed Busy Hour Input Power (W)",null,null,null,null,{"$f":"$K$51*0.65","v":0},null,"RRU Voltage (VDC) at Min Source Voltage and Peak Power",null,null,null,null,null,null,null,{"$f":"IFERROR(($AW$45+SQRT($AW$45*$AW$45-4*$K$51*$AW$50))/2,\"Invalid\")","v":42},null,{"$f":"IFERROR(($AW$46+SQRT($AW$46*$AW$46-4*$K$51*$AW$50))/2,\"Invalid\")","v":58},null,null,"RRU Voltage (VDC) at Min Source Voltage and Busy Hour",null,null,null,null,null,null,null,{"$f":"IFERROR(($AW$45+SQRT($AW$45*$AW$45-4*$AW$44*$AW$50))/2,\"Invalid\")","v":42},null,{"$f":"IFERROR(($AW$46+SQRT($AW$46*$AW$46-4*$AW$44*$AW$50))/2,\"Invalid\")","v":58},null,null,"Power Extend Converter Average Power Level Above which a Space is required Between Each 4 Units (W)",null,null,null,null,null,250]
["Trunk Cable Length - one-way",null,null,null,null,null,null,null,null,null,500,"ft",null,null,null,null,null,null,null,null,null,null,null,null,null,null,null,null,null,null,null,null,null,null,null,null,null,null,null,null,null,null,null,"Minimum Source Voltage (V)",null,null,null,null,42,null,"RRU Trunk Feed Current (A) at Min Source Voltage and Peak Power",null,null,null,null,null,null,null,{"$f":"IFERROR($K$51/$BG$44,\"Invalid\")","v":0},null,{"$f":"IFERROR($K$51/$BI$44,\"Invalid\")","v":0},null,null,"RRU Trunk Feed Current (A) at Min Source Voltage and Busy Hour",null,null,null,null,null,null,null,{"$f":"IFERROR($AW$44/$BT$44,\"Invalid\")","v":0},null,{"$f":"IFERROR($AW$44/$BV$44,\"Invalid\")","v":0}]
["Trunk Cable Size (AWG - 4, 6, 8)",null,null,null,null,null,null,null,null,null,6,null,null,null,null,null,null,null,null,null,null,null,null,null,null,null,null,null,null,null,null,null,null,null,null,null,null,null,null,null,null,null,null,"Converter Output Voltage (V)",null,null,null,null,58,null,"Source Power (W) per RRU Trunk Feed at Min Source V and Peak RRU Power",null,null,null,null,null,null,null,{"$f":"IFERROR($AW$45*$BG$45,\"Invalid\")","v":0},null,{"$f":"IFERROR($AW$46*$BI$45/0.98,\"Invalid\")","v":0},null,null,"Source Power (W) at Min Source V and Busy Hour per RRU Trunk Feed",null,null,null,null,null,null,null,{"$f":"IFERROR($AW$45*$BT$45,\"Invalid\")","v":0},null,{"$f":"IFERROR($AW$46*$BV$45/0.98,\"Invalid\")","v":0},null,null,"Power Extend Converter Average Power Level Above which a Space is required Between Each 3 Units (W)",null,null,null,null,null,475]
["Jumper Cable Length - one-way",null,null,null,null,null,null,null,null,null,10,"ft",null,null,null,null,null,null,null,null,null,null,null,null,null,null,null,null,null,null,null,null,null,null,null,null,null,null,null,null,null,null,null,"Minimum RRU Operating Voltage (VDC)",null,null,null,null,40,null,"Total Source Power (W) at Min Source Voltage and Peak RRU Power",null,null,null,null,null,null,null,{"$f":"IFERROR($K$49*$BG$46,\"Invalid\")","v":0},null,{"$f":"IFERROR($K$49*$BI$46,\"Invalid\")","v":0},null,null,"Total Source Power (W) at Min Source Voltage and Busy Hour",null,null,null,null,null,null,null,{"$f":"IFERROR($K$49*$BT$46,\"Invalid\")","v":0},null,{"$f":"IFERROR($K$49*$BV$46,\"Invalid\")","v":0}]
["Jumper Cable Size (AWG - 8, 10, or 12)",null,null,null,null,null,null,null,null,null,8,null,null,null,null,null,null,null,null,null,null,null,null,null,null,null,null,null,null,null,null,null,null,null,null,null,null,null,null,null,null,null,null,"Peak Power Rating of Power Extend Conv (W)",null,null,null,null,1000,null,"Peak Power System Current (A) Required for RRUs",null,null,null,null,null,null,null,{"$f":"IFERROR($BG$47/$AW$45,\"Invalid\")","v":0},null,{"$f":"IFERROR($BI$47/0.98/$AW$45,\"Invalid\")","v":0},null,null,null,null,null,null,null,null,null,null,null,null,null,null,null,"Power Extend Converter Average Power Level Above which a Space is required Between Each 2 Units (W)",null,null,null,null,null,525]
["Total Quantity of RRU Trunk Feeds",null,null,null,null,null,null,null,null,null,3,null,null,null,null,null,null,null,null,null,null,null,null,null,null,null,null,null,null,null,null,null,null,null,null,null,null,null,null,null,null,null,null,"Total Cable loop length",null,null,null,null,{"$f":"2*($K$45+$K$47)","v":1020},"ft","Qty of Power Extend Converters Req'd per RRU Trunk Feed",null,null,null,null,null,null,null,"N/A",null,{"$f":"IFERROR(IF($BI$44<$AW$47,0,IF(OR($BG$44<$AW$47,$BG$44=\"Invalid\"),ROUNDUP($BI$46/$AW$48,0),0)),0)","v":0},null,null,null,"`"]
["Radio",null,null,null,null,null,null,null,null,null,null,null,null,null,null,null,null,null,null,null,null,null,null,null,null,null,null,null,null,null,null,null,null,null,null,null,null,null,null,null,null,null,null,"Cable Resistance (Ohms)",null,null,null,null,0.45340000000000003,null,"Qty of Power Extend Converters Req'd per Site",null,null,null,null,null,null,null,"N/A",null,{"$f":"IFERROR($BI$49*$K$49,0)","v":0},null,null,null,null,null,null,null,null,null,null,null,null,null,null,null,"Power Extend Converter Average Power Level Above which a Space is required Between Each Unit (W)",null,null,null,null,null,650]
["RRU Trunk Feed Peak DC Input Power (W)",null,null,null,null,null,null,null,null,null,null,null,"NOTE:",null,"No Converter(s) are needed because the voltage drop without converters is OK.  See detailed in3formation to the right.",null,null,null,null,null,null,null,null,null,null,null,null,null,null,null,null,null,null,null,null,null,null,null,null,null,null,null,null,null,null,null,null,null,null,null,"# of Total Bullet Positions Required ",null,null,null,null,null,null,null,"N/A",null,{"$f":"IFERROR(IF($BV$47/$BI$50>$CE$50,2*$BI$50-1,IF($BV$47/$BI$50>$CE$48,INT(1.499*$BI$50),IF($BV$47/$BI$50>$CE$46,INT(1.33*$BI$50),IF($BV$47/$BI$50>$CE$44,INT(1.249*$BI$50),$BI$50)))),0)","v":0}]
[]
["Radio Type #6:",null,null,null,"Converters per trunk feed:",null,null,null,null,null,{"$f":"BI59","v":0},null,null,null,null,null,null,null,null,null,null,null,null,null,null,null,null,null,null,null,null,null,null,"ADDITIONAL INPUT & MORE INFO"]
["Select Installation type",null,null,null,null,null,null,null,null,null,null,null,null,null,null,null,null,null,null,null,null,null,null,null,null,null,null,null,null,null,null,null,null,null,null,null,null,null,null,null,null,null,null,"RRU Trunk Feed Busy Hour Input Power (W)",null,null,null,null,{"$f":"$K$61*0.65","v":0},null,"RRU Voltage (VDC) at Min Source Voltage and Peak Power",null,null,null,null,null,null,null,{"$f":"IFERROR(($AW$55+SQRT($AW$55*$AW$55-4*$K$61*$AW$60))/2,\"Invalid\")","v":42},null,{"$f":"IFERROR(($AW$56+SQRT($AW$56*$AW$56-4*$K$61*$AW$60))/2,\"Invalid\")","v":58},null,null,"RRU Voltage (VDC) at Min Source Voltage and Busy Hour",null,null,null,null,null,null,null,{"$f":"IFERROR(($AW$55+SQRT($AW$55*$AW$55-4*$AW$54*$AW$60))/2,\"Invalid\")","v":42},null,{"$f":"IFERROR(($AW$56+SQRT($AW$56*$AW$56-4*$AW$54*$AW$60))/2,\"Invalid\")","v":58},null,null,"Power Extend Converter Average Power Level Above which a Space is required Between Each 4 Units (W)",null,null,null,null,null,250]
["Trunk Cable Length - one-way",null,null,null,null,null,null,null,null,null,500,"ft",null,null,null,null,null,null,null,null,null,null,null,null,null,null,null,null,null,null,null,null,null,null,null,null,null,null,null,null,null,null,null,"Minimum Source Voltage (V)",null,null,null,null,42,null,"RRU Trunk Feed Current (A) at Min Source Voltage and Peak Power",null,null,null,null,null,null,null,{"$f":"IFERROR($K$61/$BG$54,\"Invalid\")","v":0},null,{"$f":"IFERROR($K$61/$BI$54,\"Invalid\")","v":0},null,null,"RRU Trunk Feed Current (A) at Min Source Voltage and Busy Hour",null,null,null,null,null,null,null,{"$f":"IFERROR($AW$54/$BT$54,\"Invalid\")","v":0},null,{"$f":"IFERROR($AW$54/$BV$54,\"Invalid\")","v":0}]
["Trunk Cable Size (AWG - 4, 6, 8)",null,null,null,null,null,null,null,null,null,6,null,null,null,null,null,null,null,null,null,null,null,null,null,null,null,null,null,null,null,null,null,null,null,null,null,null,null,null,null,null,null,null,"Converter Output Voltage (V)",null,null,null,null,58,null,"Source Power (W) per RRU Trunk Feed at Min Source V and Peak RRU Power",null,null,null,null,null,null,null,{"$f":"IFERROR($AW$55*$BG$55,\"Invalid\")","v":0},null,{"$f":"IFERROR($AW$56*$BI$55,\"Invalid\")","v":0},null,null,"Source Power (W) at Min Source V and Busy Hour per RRU Trunk Feed",null,null,null,null,null,null,null,{"$f":"IFERROR($AW$55*$BT$55,\"Invalid\")","v":0},null,{"$f":"IFERROR($AW$56*$BV$55,\"Invalid\")","v":0},null,null,"Power Extend Converter Average Power Level Above which a Space is required Between Each 3 Units (W)",null,null,null,null,null,475]
["Jumper Cable Length - one-way",null,null,null,null,null,null,null,null,null,10,"ft",null,null,null,null,null,null,null,null,null,null,null,null,null,null,null,null,null,null,null,null,null,null,null,null,null,null,null,null,null,null,null,"Minimum RRU Operating Voltage (VDC)",null,null,null,null,40,null,"Total Source Power (W) at Min Source Voltage and Peak RRU Power",null,null,null,null,null,null,null,{"$f":"IFERROR($K$59*$BG$56,\"Invalid\")","v":0},null,{"$f":"IFERROR($K$59*$BI$56,\"Invalid\")","v":0},null,null,"Total Source Power (W) at Min Source Voltage and Busy Hour",null,null,null,null,null,null,null,{"$f":"IFERROR($K$59*$BT$56,\"Invalid\")","v":0},null,{"$f":"IFERROR($K$59*$BV$56,\"Invalid\")","v":0}]
["Jumper Cable Size (AWG - 8, 10, or 12)",null,null,null,null,null,null,null,null,null,8,null,null,null,null,null,null,null,null,null,null,null,null,null,null,null,null,null,null,null,null,null,null,null,null,null,null,null,null,null,null,null,null,"Peak Power Rating of Power Extend Conv (W)",null,null,null,null,1000,null,"Peak Power System Current (A) Required for RRUs",null,null,null,null,null,null,null,{"$f":"IFERROR($BG$57/$AW$55,\"Invalid\")","v":0},null,{"$f":"IFERROR($BI$57/0.98/$AW$55,\"Invalid\")","v":0},null,null,null,null,null,null,null,null,null,null,null,null,null,null,null,"Power Extend Converter Average Power Level Above which a Space is required Between Each 2 Units (W)",null,null,null,null,null,525]
["Total Quantity of RRU Trunk Feeds",null,null,null,null,null,null,null,null,null,3,null,null,null,null,null,null,null,null,null,null,null,null,null,null,null,null,null,null,null,null,null,null,null,null,null,null,null,null,null,null,null,null,"Total Cable loop length",null,null,null,null,{"$f":"2*($K$55+$K$57)","v":1020},"ft","Qty of Power Extend Converters Req'd per RRU Trunk Feed",null,null,null,null,null,null,null,"N/A",null,{"$f":"IFERROR(IF($BI$54<$AW$57,0,IF(OR($BG$54<$AW$57,$BG$54=\"Invalid\"),ROUNDUP($BI$56/$AW$58,0),0)),0)","v":0}]
["Radio",null,null,null,null,null,null,null,null,null,null,null,null,null,null,null,null,null,null,null,null,null,null,null,null,null,null,null,null,null,null,null,null,null,null,null,null,null,null,null,null,null,null,"Cable Resistance (Ohms)",null,null,null,null,0.45340000000000003,null,"Qty of Power Extend Converters Req'd per Site",null,null,null,null,null,null,null,"N/A",null,{"$f":"IFERROR($BI$59*$K$59,0)","v":0},null,null,null,null,null,null,null,null,null,null,null,null,null,null,null,"Power Extend Converter Average Power Level Above which a Space is required Between Each Unit (W)",null,null,null,null,null,650]
["RRU Trunk Feed Peak DC Input Power (W)",null,null,null,null,null,null,null,null,null,null,null,"NOTE:",null,"No Converter(s) are needed because the voltage drop without converters is OK.  See detailed in3formation to the right.",null,null,null,null,null,null,null,null,null,null,null,null,null,null,null,null,null,null,null,null,null,null,null,null,null,null,null,null,null,null,null,null,null,null,null,"# of Total Bullet Positions Required ",null,null,null,null,null,null,null,"N/A",null,{"$f":"IFERROR(IF($BV$57/$BI$60>$CE$60,2*$BI$60-1,IF($BV$57/$BI$60>$CE$58,INT(1.499*$BI$60),IF($BV$57/$BI$60>$CE$56,INT(1.33*$BI$60),IF($BV$57/$BI$60>$CE$54,INT(1.249*$BI$60),$BI$60)))),0)","v":0}]
[]
["Radio Type #7:",null,null,null,"Converters per trunk feed:",null,null,null,null,null,{"$f":"BI69","v":0},null,null,null,null,null,null,null,null,null,null,null,null,null,null,null,null,null,null,null,null,null,null,"ADDITIONAL INPUT & MORE INFO"]
["Select Installation type",null,null,null,null,null,null,null,null,null,null,null,null,null,null,null,null,null,null,null,null,null,null,null,null,null,null,null,null,null,null,null,null,null,null,null,null,null,null,null,null,null,null,"RRU Trunk Feed Busy Hour Input Power (W)",null,null,null,null,{"$f":"$K$71*0.65","v":0},null,"RRU Voltage (VDC) at Min Source Voltage and Peak Power",null,null,null,null,null,null,null,{"$f":"IFERROR(($AW$65+SQRT($AW$65*$AW$65-4*$K$71*$AW$70))/2,\"Invalid\")","v":42},null,{"$f":"IFERROR(($AW$66+SQRT($AW$66*$AW$66-4*$K$71*$AW$70))/2,\"Invalid\")","v":58},null,null,"RRU Voltage (VDC) at Min Source Voltage and Busy Hour",null,null,null,null,null,null,null,{"$f":"IFERROR(($AW$65+SQRT($AW$65*$AW$65-4*$AW$64*$AW$70))/2,\"Invalid\")","v":42},null,{"$f":"IFERROR(($AW$66+SQRT($AW$66*$AW$66-4*$AW$64*$AW$70))/2,\"Invalid\")","v":58},null,null,"Power Extend Converter Average Power Level Above which a Space is required Between Each 4 Units (W)",null,null,null,null,null,250]
["Trunk Cable Length - one-way",null,null,null,null,null,null,null,null,null,500,"ft",null,null,null,null,null,null,null,null,null,null,null,null,null,null,null,null,null,null,null,null,null,null,null,null,null,null,null,null,null,null,null,"Minimum Source Voltage (V)",null,null,null,null,42,null,"RRU Trunk Feed Current (A) at Min Source Voltage and Peak Power",null,null,null,null,null,null,null,{"$f":"IFERROR($K$71/$BG$64,\"Invalid\")","v":0},null,{"$f":"IFERROR($K$71/$BI$64,\"Invalid\")","v":0},null,null,"RRU Trunk Feed Current (A) at Min Source Voltage and Busy Hour",null,null,null,null,null,null,null,{"$f":"IFERROR($AW$64/$BT$64,\"Invalid\")","v":0},null,{"$f":"IFERROR($AW$64/$BV$64,\"Invalid\")","v":0}]
["Trunk Cable Size (AWG - 4, 6, 8)",null,null,null,null,null,null,null,null,null,6,null,null,null,null,null,null,null,null,null,null,null,null,null,null,null,null,null,null,null,null,null,null,null,null,null,null,null,null,null,null,null,null,"Converter Output Voltage (V)",null,null,null,null,58,null,"Source Power (W) per RRU Trunk Feed at Min Source V and Peak RRU Power",null,null,null,null,null,null,null,{"$f":"IFERROR($AW$65*$BG$65,\"Invalid\")","v":0},null,{"$f":"IFERROR($AW$66*$BI$65/0.98,\"Invalid\")","v":0},null,null,"Source Power (W) at Min Source V and Busy Hour per RRU Trunk Feed",null,null,null,null,null,null,null,{"$f":"IFERROR($AW$65*$BT$65,\"Invalid\")","v":0},null,{"$f":"IFERROR($AW$66*$BV$65/0.98,\"Invalid\")","v":0},null,null,"Power Extend Converter Average Power Level Above which a Space is required Between Each 3 Units (W)",null,null,null,null,null,475]
["Jumper Cable Length - one-way",null,null,null,null,null,null,null,null,null,10,"ft",null,null,null,null,null,null,null,null,null,null,null,null,null,null,null,null,null,null,null,null,null,null,null,null,null,null,null,null,null,null,null,"Minimum RRU Operating Voltage (VDC)",null,null,null,null,40,null,"Total Source Power (W) at Min Source Voltage and Peak RRU Power",null,null,null,null,null,null,null,{"$f":"IFERROR($K$69*$BG$66,\"Invalid\")","v":0},null,{"$f":"IFERROR($K$69*$BI$66,\"Invalid\")","v":0},null,null,"Total Source Power (W) at Min Source Voltage and Busy Hour",null,null,null,null,null,null,null,{"$f":"IFERROR($K$69*$BT$66,\"Invalid\")","v":0},null,{"$f":"IFERROR($K$69*$BV$66,\"Invalid\")","v":0}]
["Jumper Cable Size (AWG - 8, 10, or 12)",null,null,null,null,null,null,null,null,null,8,null,null,null,null,null,null,null,null,null,null,null,null,null,null,null,null,null,null,null,null,null,null,null,null,null,null,null,null,null,null,null,null,"Peak Power Rating of Power Extend Conv (W)",null,null,null,null,1000,null,"Peak Power System Current (A) Required for RRUs",null,null,null,null,null,null,null,{"$f":"IFERROR($BG$67/$AW$65,\"Invalid\")","v":0},null,{"$f":"IFERROR($BI$67/0.98/$AW$65,\"Invalid\")","v":0},null,null,null,null,null,null,null,null,null,null,null,null,null,null,null,"Power Extend Converter Average Power Level Above which a Space is required Between Each 2 Units (W)",null,null,null,null,null,525]
["Total Quantity of RRU Trunk Feeds",null,null,null,null,null,null,null,null,null,3,null,null,null,null,null,null,null,null,null,null,null,null,null,null,null,null,null,null,null,null,null,null,null,null,null,null,null,null,null,null,null,null,"Total Cable loop length",null,null,null,null,{"$f":"2*($K$65+$K$67)","v":1020},"ft","Qty of Power Extend Converters Req'd per RRU Trunk Feed",null,null,null,null,null,null,null,"N/A",null,{"$f":"IFERROR(IF($BI$64<$AW$67,0,IF(OR($BG$64<$AW$67,$BG$64=\"Invalid\"),ROUNDUP($BI$66/$AW$68,0),0)),0)","v":0},null,null,null,"`"]
["Radio",null,null,null,null,null,null,null,null,null,null,null,null,null,null,null,null,null,null,null,null,null,null,null,null,null,null,null,null,null,null,null,null,null,null,null,null,null,null,null,null,null,null,"Cable Resistance (Ohms)",null,null,null,null,0.45340000000000003,null,"Qty of Power Extend Converters Req'd per Site",null,null,null,null,null,null,null,"N/A",null,{"$f":"IFERROR($BI$69*$K$69,0)","v":0},null,null,null,null,null,null,null,null,null,null,null,null,null,null,null,"Power Extend Converter Average Power Level Above which a Space is required Between Each Unit (W)",null,null,null,null,null,650]
["RRU Trunk Feed Peak DC Input Power (W)",null,null,null,null,null,null,null,null,null,null,null,"NOTE:",null,"No Converter(s) are needed because the voltage drop without converters is OK.  See detailed in3formation to the right.",null,null,null,null,null,null,null,null,null,null,null,null,null,null,null,null,null,null,null,null,null,null,null,null,null,null,null,null,null,null,null,null,null,null,null,"# of Total Bullet Positions Required ",null,null,null,null,null,null,null,"N/A",null,{"$f":"IFERROR(IF($BV$67/$BI$70>$CE$70,2*$BI$70-1,IF($BV$67/$BI$70>$CE$68,INT(1.499*$BI$70),IF($BV$67/$BI$70>$CE$66,INT(1.33*$BI$70),IF($BV$67/$BI$70>$CE$64,INT(1.249*$BI$70),$BI$70)))),0)","v":0}]
[]
["Radio Type #8:",null,null,null,"Converters per trunk feed:",null,null,null,null,null,{"$f":"BI79","v":0},null,null,null,null,null,null,null,null,null,null,null,null,null,null,null,null,null,null,null,null,null,null,"ADDITIONAL INPUT & MORE INFO"]
["Select Installation type",null,null,null,null,null,null,null,null,null,null,null,null,null,null,null,null,null,null,null,null,null,null,null,null,null,null,null,null,null,null,null,null,null,null,null,null,null,null,null,null,null,null,"RRU Trunk Feed Busy Hour Input Power (W)",null,null,null,null,{"$f":"$K$81*0.65","v":0},null,"RRU Voltage (VDC) at Min Source Voltage and Peak Power",null,null,null,null,null,null,null,{"$f":"IFERROR(($AW$75+SQRT($AW$75*$AW$75-4*$K$81*$AW$80))/2,\"Invalid\")","v":42},null,{"$f":"IFERROR(($AW$76+SQRT($AW$76*$AW$76-4*$K$81*$AW$80))/2,\"Invalid\")","v":58},null,null,"RRU Voltage (VDC) at Min Source Voltage and Busy Hour",null,null,null,null,null,null,null,{"$f":"IFERROR(($AW$75+SQRT($AW$75*$AW$75-4*$AW$74*$AW$80))/2,\"Invalid\")","v":42},null,{"$f":"IFERROR(($AW$76+SQRT($AW$76*$AW$76-4*$AW$74*$AW$80))/2,\"Invalid\")","v":58},null,null,"Power Extend Converter Average Power Level Above which a Space is required Between Each 4 Units (W)",null,null,null,null,null,250]
["Trunk Cable Length - one-way",null,null,null,null,null,null,null,null,null,500,"ft",null,null,null,null,null,null,null,null,null,null,null,null,null,null,null,null,null,null,null,null,null,null,null,null,null,null,null,null,null,null,null,"Minimum Source Voltage (V)",null,null,null,null,42,null,"RRU Trunk Feed Current (A) at Min Source Voltage and Peak Power",null,null,null,null,null,null,null,{"$f":"IFERROR($K$81/$BG$74,\"Invalid\")","v":0},null,{"$f":"IFERROR($K$81/$BI$74,\"Invalid\")","v":0},null,null,"RRU Trunk Feed Current (A) at Min Source Voltage and Busy Hour",null,null,null,null,null,null,null,{"$f":"IFERROR($AW$74/$BT$74,\"Invalid\")","v":0},null,{"$f":"IFERROR($AW$74/$BV$74,\"Invalid\")","v":0}]
["Trunk Cable Size (AWG - 4, 6, 8)",null,null,null,null,null,null,null,null,null,6,null,null,null,null,null,null,null,null,null,null,null,null,null,null,null,null,null,null,null,null,null,null,null,null,null,null,null,null,null,null,null,null,"Converter Output Voltage (V)",null,null,null,null,58,null,"Source Power (W) per RRU Trunk Feed at Min Source V and Peak RRU Power",null,null,null,null,null,null,null,{"$f":"IFERROR($AW$75*$BG$75,\"Invalid\")","v":0},null,{"$f":"IFERROR($AW$76*$BI$75/0.98,\"Invalid\")","v":0},null,null,"Source Power (W) at Min Source V and Busy Hour per RRU Trunk Feed",null,null,null,null,null,null,null,{"$f":"IFERROR($AW$75*$BT$75,\"Invalid\")","v":0},null,{"$f":"IFERROR($AW$76*$BV$75/0.98,\"Invalid\")","v":0},null,null,"Power Extend Converter Average Power Level Above which a Space is required Between Each 3 Units (W)",null,null,null,null,null,475]
["Jumper Cable Length - one-way",null,null,null,null,null,null,null,null,null,10,"ft",null,null,null,null,null,null,null,null,null,null,null,null,null,null,null,null,null,null,null,null,null,null,null,null,null,null,null,null,null,null,null,"Minimum RRU Operating Voltage (VDC)",null,null,null,null,40,null,"Total Source Power (W) at Min Source Voltage and Peak RRU Power",null,null,null,null,null,null,null,{"$f":"IFERROR($K$79*$BG$76,\"Invalid\")","v":0},null,{"$f":"IFERROR($K$79*$BI$76,\"Invalid\")","v":0},null,null,"Total Source Power (W) at Min Source Voltage and Busy Hour",null,null,null,null,null,null,null,{"$f":"IFERROR($K$79*$BT$76,\"Invalid\")","v":0},null,{"$f":"IFERROR($K$79*$BV$76,\"Invalid\")","v":0}]
["Jumper Cable Size (AWG - 8, 10, or 12)",null,null,null,null,null,null,null,null,null,8,null,null,null,null,null,null,null,null,null,null,null,null,null,null,null,null,null,null,null,null,null,null,null,null,null,null,null,null,null,null,null,null,"Peak Power Rating of Power Extend Conv (W)",null,null,null,null,1000,null,"Peak Power System Current (A) Required for RRUs",null,null,null,null,null,null,null,{"$f":"IFERROR($BG$77/$AW$75,\"Invalid\")","v":0},null,{"$f":"IFERROR($BI$77/0.98/$AW$75,\"Invalid\")","v":0},null,null,null,null,null,null,null,null,null,null,null,null,null,null,null,"Power Extend Converter Average Power Level Above which a Space is required Between Each 2 Units (W)",null,null,null,null,null,525]
["Total Quantity of RRU Trunk Feeds",null,null,null,null,null,null,null,null,null,3,null,null,null,null,null,null,null,null,null,null,null,null,null,null,null,null,null,null,null,null,null,null,null,null,null,null,null,null,null,null,null,null,"Total Cable loop length",null,null,null,null,{"$f":"2*($K$75+$K$77)","v":1020},"ft","Qty of Power Extend Converters Req'd per RRU Trunk Feed",null,null,null,null,null,null,null,"N/A",null,{"$f":"IFERROR(IF($BI$74<$AW$77,0,IF(OR($BG$74<$AW$77,$BG$74=\"Invalid\"),ROUNDUP($BI$76/$AW$78,0),0)),0)","v":0}]
["Radio",null,null,null,null,null,null,null,null,null,null,null,null,null,null,null,null,null,null,null,null,null,null,null,null,null,null,null,null,null,null,null,null,null,null,null,null,null,null,null,null,null,null,"Cable Resistance (Ohms)",null,null,null,null,0.45340000000000003,null,"Qty of Power Extend Converters Req'd per Site",null,null,null,null,null,null,null,"N/A",null,{"$f":"IFERROR($BI$79*$K$79,0)","v":0},null,null,null,null,null,null,null,null,null,null,null,null,null,null,null,"Power Extend Converter Average Power Level Above which a Space is required Between Each Unit (W)",null,null,null,null,null,650]
["RRU Trunk Feed Peak DC Input Power (W)",null,null,null,null,null,null,null,null,null,null,null,"NOTE:",null,"No Converter(s) are needed because the voltage drop without converters is OK.  See detailed in3formation to the right.",null,null,null,null,null,null,null,null,null,null,null,null,null,null,null,null,null,null,null,null,null,null,null,null,null,null,null,null,null,null,null,null,null,null,null,"# of Total Bullet Positions Required ",null,null,null,null,null,null,null,"N/A",null,{"$f":"IFERROR(IF($BV$77/$BI$80>$CE$80,2*$BI$80-1,IF($BV$77/$BI$80>$CE$78,INT(1.499*$BI$80),IF($BV$77/$BI$80>$CE$76,INT(1.33*$BI$80),IF($BV$77/$BI$80>$CE$74,INT(1.249*$BI$80),$BI$80)))),0)","v":0}]

{"sheet":"RRUs","index":2,"n_rows":45,"n_cols":4,"rows_kept":45,"cut":false,"hidden":false,"merged":[]}
["Manufacturer","Radio","DC Power Consumption (W)"]
["(other)","(enter power level)",null,"1,2"]
["Ericsson","RRUS 11",450,"1,2"]
["Ericsson","RRUS12 + A2",650,"1,2"]
["Ericsson","RRUS 32 B66",880,"1,2"]
["Ericsson","RRUS 32 B30",800,"1,2"]
["Ericsson","RRUS 32 B2",910,"1,2"]
["Ericsson","RRUS 2203 B2, B5",120,"1,2"]
["Ericsson","RRUS 2205 B46",100,"1,2"]
["Ericsson","RRUS 2217",326,1]
["Ericsson","AIR 3246 B25, B66",1440,"1,2"]
["Ericsson","RRU 4415 B25",670,"1,2"]
["Ericsson","RRUS 4415 B30",670,"1,2"]
["Ericsson","RRUS 4418",676,1]
["Ericsson","RRU 4426 B66",809,"1,2"]
["Ericsson","RRU 4478 B14",650,"1,2"]
["Ericsson","RRU 4478 B5",805,"1,2"]
["Ericsson","RRUS 4449 B5/B12 (1 feed)",1440,"1,2"]
["Ericsson","RRUS 4449 B5/B12 (2 feed)",720,"1,2"]
["Ericsson","RRUS 8843 B2/B66 (1 feed)",1520,"1,2"]
["Ericsson","RRUS 8843 B2/B66 (2 feed)",1100,"1,2"]
["Ericsson","RRUS E2 B29",670,"1,2"]
["Ericsson","AIR 5121 radio",218,1]
["Ericsson","AIR 5331 radio",760,"1,2"]
["Ericsson","AIR 6468 radio",1069,1]
["Ericsson","AIR 6488 radio",1540,1]
["Nokia","2X40 (L7)",330,"1,2"]
["Nokia","2x40 (B29)",330,"1,2"]
["Nokia","2X60 (U8, U9)",500,"1,2"]
["Nokia","2X60 B66 (L2)",560,"1,2"]
["Nokia","2X60 (L8, L9)",500,"1,2"]
["Nokia","2X60 B4 (L9)",600,"1,2"]
["Nokia","4X25 B30 (L3)",600,"1,2"]
["Nokia","4X30 B25 (L9)",680,"1,2"]
["Nokia","4X45 B66a (L2)",750,"1,2"]
["Nokia","Flexi FRBI B14",765,"1,2"]
["Nokia","Airscale AHCA B5",675,"1,2"]
["Nokia","Airscale AHNA B30",600,"1,2"]
["Nokia","Airscale (Micro) AHFB B25",135,"1,2"]
["Nokia","Airscale (Micro) AHIB B25",135,"1,2"]
["Nokia","Airscale AHLBA B12/14",1200,"1,2"]
["Nokia","Airscale AHFIB B25/66",1200,"1,2"]
["Nokia","Airscale Dual Band AHBCB B25/29",850,"1,2"]
["Nokia","Airscale AAS AEWB 39 GHz",550,"1,2"]
["Nokia","Airscale Triband AHLBBA (B12/B14/B29)",1200,"1,2"]

{"sheet":"Power Plant","index":3,"n_rows":24,"n_cols":18,"rows_kept":24,"cut":false,"hidden":false,"merged":[[0,10,1,13],[0,1,2,1],[0,2,0,9],[1,2,1,5],[1,6,1,9]]}
[null,"Power Plant Model","Power Extend Converter Average Power Level Above which a Space is required Between Each:",null,null,null,null,null,null,null,"ORDERING INFORMATION"]
[null,null,"UNSTACKED",null,null,null,"STACKED"]
[null,null,"4 Units (W)","3 Units (W)","2 Units (W)","1 Units (W)","4 Units (W)","3 Units (W)","2 Units (W)","1 Units (W)","Mounting Kit","# of Kits","ATTM P/N","Description",null,"Device P/N","ATTM P/N","Description"]
["1,2","NetSure 721/7100 – 582127000 w/26-position Panels",250,475,525,650,250,400,450,625,565459,"Per Panel","NEQ.44719","Mounting kit, eSure Power Extend Converter, 26-position panel for NetSure 7100",null,565050,"NEQ.44717","eSure™ power extend converter, -58VDC, 1000W"]
["1,2","NetSure 721/7100 – 582127000 w/24-position Panels",250,475,525,650,250,400,450,625,565391,"Per Panel","NEQ.44716","Mounting kit, eSure Power Extend Converter, 24-position panel for NetSure 7100",null,60016097,"NEQ.45871","2-pole lug adapter plate, flat, copper"]
["1,2","NetSure 710 – 581127000 w/26-position Panels",250,475,525,650,250,400,450,625,565459,"Per Panel","NEQ.44719","Mounting kit, eSure Power Extend Converter, 26-position panel for NetSure 7100",null,545346,"NEQ.45873","3-pole lug adapter plate, flat, copper"]
["1,2","NetSure 710 – 581127000 w/24-position Panels",250,475,525,650,250,400,450,625,565391,"Per Panel","NEQ.44716","Mounting kit, eSure Power Extend Converter, 24-position panel for NetSure 7100"]
["1,2","NetSure 701 - 582126000",250,475,525,650,250,400,450,625,565601,"Per Panel","NEQ.44718","Mounting kit, eSure Power Extend Converter, 24-position panel for NetSure 701, NetSure 700, Vortex"]
["1,2","NetSure 700 - 581126000",250,475,525,650,250,400,450,625,565601,"Per Panel","NEQ.44718","Mounting kit, eSure Power Extend Converter, 24-position panel for NetSure 701, NetSure 700, Vortex"]
["1,2","Vortex, 1231V2 - 582125000",250,475,525,650,250,400,450,625,565601,"Per Panel","NEQ.44718","Mounting kit, eSure Power Extend Converter, 24-position panel for NetSure 701, NetSure 700, Vortex"]
["1,2","Vortex, 1211V2 - 581125000",250,475,525,650,250,400,450,625,565601,"Per Panel","NEQ.44718","Mounting kit, eSure Power Extend Converter, 24-position panel for NetSure 701, NetSure 700, Vortex"]
["1,2","NetSure 512 - 582137000",350,400,500,700,250,300,325,500,565460,"Per System","NEQ.44715","Mounting kit, eSure Power Extend Converter, 30-position panel for NetSure 512 (one kit required per power system)"]
["1,2","548066 - 19\"W CB Panel 4RU @ 40°C",250,425,450,575,250,425,450,575,60018725,"Per Panel","NEQ.46503","Mounting kit, eSure Power Extend Converter, 19-position panel, indoor NetSure 502, and stand alone breaker panel (p/n 10012729)"]
["1,2","548067 - 23\"W CB Panel 4RU @ 40°C",250,425,450,575,250,425,450,575,10010670,"Per Panel","NEQ.45872","Mounting kit, eSure Power Extend Converter, 24-position panel for single-row distribution panel in indoor NetSure 502, and stand alone breaker panel (p/n 10009822)"]
["1,2","NetSure 502 - 23\"W 582136800 @ 40°C",250,425,450,575,250,425,450,575,10010670,"Per Panel","NEQ.45872","Mounting kit, eSure Power Extend Converter, 24-position panel for single-row distribution panel in indoor NetSure 502, and stand alone breaker panel (p/n 10009822)"]
["1,2","NetSure 502 - 19\"W 582136800 @ 40°C",250,425,450,575,250,425,450,575,60018725,"Per Panel","NEQ.46503","Mounting kit, eSure Power Extend Converter, 19-position panel, indoor NetSure 502, and stand alone breaker panel (p/n 10012729)"]
["1,2","F2010398 - 582136800ZZ031",300,400,475,600,300,400,475,600,565649,"Per Panel","NEQ.45870","Mounting kit, eSure Power Extend Converter, 24-position panel for outdoor NetSure 502"]
["1,2","10009822 - 23\"W CB Panel 4RU w/adapters @ 40°C",250,425,450,575,250,425,450,575,10010670,"Per Panel","NEQ.45872","Mounting kit, eSure Power Extend Converter, 24-position panel for single-row distribution panel in indoor NetSure 502, and stand alone breaker panel (p/n 10009822)"]
["1,2","545277 - 20-Position CB Panel 6RU @ 40°C",400,500,600,750,400,500,600,750,60017372,"Per Panel","NEQ.45874","Mounting kit, eSure Power Extend Converter, 20-position panel for stand alone breaker panel (p/n 545277)"]
[1,"NetSure 5100 - 23\"W 582137100 Single Row @ 40°C",300,425,450,650,300,425,450,650,565997,"Per Panel","N/A","Mounting kit, eSure Power Extend Converter, 24-position panel for single-row distribution panel in indoor NetSure 5100"]
[1,"NetSure 5100 - 19\"W 582137100 Single Row @ 40°C",300,425,450,650,300,425,450,650,565939,"Per Panel","N/A","Mounting kit, eSure Power Extend Converter, 19-position panel for single-row distribution panel in indoor NetSure 5100"]
["1,2","NetSure 5100 - 23\"W 582137100 Two Row @ 40°C",300,425,450,650,200,300,400,425,60011928,"Per System","NEQ. 46579","Mounting kit, eSure Power Extend Converter, 26-position panel for NetSure 5100 two row distribution cabinet (one kit required per power system)"]
["1,2","10012729 - 19\"W CB Panel 4RU w/adapters @ 40°C",250,425,450,575,250,425,450,575,60018725,"Per Panel","NEQ.46503","Mounting kit, eSure Power Extend Converter, 19-position panel, indoor NetSure 502, and stand alone breaker panel (p/n 10012729)"]
[1,"NetSure 5100 - 582137100ZZ017 @ 65°C",400,500,625,775,400,500,625,775,60011930,"Per Panel","N/A","Mounting kit, eSure Power Extend Converter, 26-position panel for outdoor NetSure 5100"]

{"sheet":"Resistance Table","index":4,"n_rows":29,"n_cols":23,"rows_kept":29,"cut":false,"hidden":false,"merged":[[2,26,3,27],[2,28,3,29],[4,26,4,29],[0,0,0,21],[4,0,4,10],[3,0,3,10],[1,0,1,3],[1,4,1,11],[2,0,2,11],[4,13,4,25],[5,0,5,10],[6,0,6,10],[7,0,7,10],[5,26,5,29],[6,26,6,27],[6,28,6,29],[7,26,7,27],[7,28,7,29],[5,13,5,25],[6,13,6,25],[7,13,7,25],[8,26,8,27],[8,28,8,29],[9,26,9,27],[9,28,9,29],[8,13,8,25],[9,13,9,25],[10,26,10,27],[10,28,10,29],[11,26,11,27],[11,28,11,29],[10,13,10,25],[11,13,11,25],[14,28,14,29],[13,0,13,10],[12,26,12,27],[12,28,12,29],[13,26,13,27],[13,28,13,29],[12,13,12,25],[13,13,13,25],[14,13,14,25],[14,26,14,27],[15,28,15,29],[16,26,16,27],[16,28,16,29],[17,26,17,27],[17,28,17,29],[20,31,20,36],[28,0,29,10],[28,11,29,11],[22,15,22,17],[23,15,23,17],[22,18,22,21],[23,18,23,21],[24,18,24,21],[25,18,25,21],[26,18,26,21],[28,18,28,21],[26,0,27,10],[26,11,27,11],[22,22,22,26],[23,22,23,26],[27,22,27,26],[10,0,10,10],[15,0,18,11],[11,0,11,10],[9,0,9,10],[8,6,8,11],[8,2,8,5],[12,0,12,10],[15,13,15,25],[16,13,16,25],[17,13,17,25],[28,22,28,26],[14,0,14,10],[27,18,27,21],[15,26,15,27],[24,22,24,26],[25,22,25,26],[26,22,26,26],[24,0,25,10],[24,11,25,11],[22,0,23,10],[22,11,23,11]]}
[]
[]
[]
[]
[]
[]
[]
[]
[]
[]
[]
[]
[]
[]
[]
[]
[]
[]
[]
[]
[]
[]
["Power Extend Converter Average Power Level Above which a Space is required Between Each 4 Units (W)",null,null,null,null,null,null,null,null,null,null,250,null,null,null,"Cable Sizes",null,null,"Resistance per Foot",null,null,null,"Resistance per Meter"]
[null,null,null,null,null,null,null,null,null,null,null,null,null,null,null,"(AWG)",null,null,"(ohms)",null,null,null,"(ohms)"]
["Power Extend Converter Average Power Level Above which a Space is required Between Each 3 Units (W)",null,null,null,null,null,null,null,null,null,null,475,null,null,null,null,4,null,2.5999999999999998E-4,null,null,null,8.4999999999999995E-4]
[null,null,null,null,null,null,null,null,null,null,null,null,null,null,null,null,6,null,4.4000000000000002E-4,null,null,null,1.4400000000000001E-3]
["Power Extend Converter Average Power Level Above which a Space is required Between Each 2 Units (W)",null,null,null,null,null,null,null,null,null,null,525,null,null,null,null,8,null,6.7000000000000002E-4,null,null,null,2.2000000000000001E-3]
[null,null,null,null,null,null,null,null,null,null,null,null,null,null,null,null,10,null,1.06E-3,null,null,null,3.48E-3]
["Power Extend Converter Average Power Level Above which a Space is required Between Each Unit (W)",null,null,null,null,null,null,null,null,null,null,650,null,null,null,null,12,null,1.6800000000000001E-3,null,null,null,5.5100000000000001E-3]

{"sheet":"Material List","index":5,"n_rows":12,"n_cols":7,"rows_kept":12,"cut":false,"hidden":false,"merged":[[10,3,10,9],[11,6,11,9],[24,6,25,9],[26,6,27,9],[1048575,6,1048575,9],[12,6,13,9],[14,6,15,9],[16,6,17,9],[18,6,19,9],[20,6,21,9],[22,6,23,9],[0,3,0,12],[1,3,1,12],[3,3,3,12],[5,3,5,12],[7,3,7,12]]}
[null,"Quantity","Vertiv P/N","Description"]
[]
[]
[]
[]
[]
[]
[]
[]
[]
[null,null,null,"Radio Breakdown"]
[null,null,null,"Radio #","Quantity","Adapter","Notes"]

{"sheet":"Adapter Layout","index":6,"n_rows":3,"n_cols":15,"rows_kept":3,"cut":false,"hidden":false,"merged":[[0,0,0,16],[2,0,2,1],[2,3,2,4],[2,6,2,7],[2,9,2,12],[2,14,2,16]]}
["Figures for \"Optimal Pattern\" Layout"]
[]
["Figure 1",null,null,"Figure 2",null,null,"Figure 3",null,null,"Figure 4",null,null,null,null,"Figure 5"]